fUSD/lending_fUSD_20250818
["ID","MTS","AMOUNT","RATE_DAILY","PERIOD"]
[380016401,1755475859678,-500.0,0.00013698,2]
[380016402,1755475859687,-1007.73,0.00013698,2]
[380016403,1755475859697,-500.0,0.00013698,2]
[380016404,1755475859707,-2063.66,0.00013698,2]
[380016405,1755475859716,-3690.348197,0.00013698,2]
[380016406,1755475859726,-400.0,0.00013698,2]
[380016407,1755475859735,-500.0,0.00013698,2]
[380016408,1755475859746,-500.0,0.00013698,2]
[380016409,1755475859755,-500.0,0.00013698,2]
[380016410,1755475859765,-623.51,0.00013698,2]
[380016411,1755475859774,-151.0,0.00013698,2]
[380016412,1755475859784,-400.0,0.00013698,2]
[380016413,1755475859794,-4746.41,0.00013698,2]
[380016414,1755475859804,-534.338006,0.00013698,2]
[380016415,1755475859814,-500.0,0.00013698,2]
[380016416,1755475859823,-2302.42,0.00013698,2]
[380016417,1755475859833,-3690.348197,0.00013698,2]
[380016418,1755475859843,-500.0,0.00013698,2]
[380016419,1755475859853,-400.0,0.00013698,2]
[380016420,1755475859863,-500.0,0.00013698,2]
[380016421,1755475859873,-400.0,0.00013698,2]
[380016422,1755475859883,-500.0,0.00013698,2]
[380016423,1755475859893,-400.0,0.00013698,2]
[380016424,1755475859902,-500.0,0.00013698,2]
[380016425,1755475859912,-400.0,0.00013698,2]
[380016426,1755475859922,-962.93,0.00013698,2]
[380016427,1755475859932,-500.0,0.00013698,2]
[380016428,1755475859943,-500.0,0.00013698,2]
[380016429,1755475859953,-151.0,0.00013698,2]
[380016430,1755475859965,-500.0,0.00013698,2]
[380016431,1755475859975,-500.0,0.00013698,2]
[380016432,1755475859985,-500.0,0.00013698,2]
[380016433,1755475859994,-500.0,0.00013698,2]
[380016434,1755475860004,-500.0,0.00013698,2]
[380016435,1755475860015,-500.0,0.00013698,2]
[380016436,1755475860025,-799.54,0.00013698,2]
[380016437,1755475860035,-500.0,0.00013698,2]
[380016438,1755475860046,-500.0,0.00013698,2]
[380016439,1755475860056,-477.92,0.00013698,2]
[380016440,1755475860066,-1686.21,0.00013698,2]
[380016441,1755475860076,-190.952011,0.00013698,2]
[380016442,1755475860088,-2913.26,0.00013698,2]
[380016443,1755475860099,-400.0,0.00013698,2]
[380016444,1755475860110,-4637.67,0.00013698,2]
[380016445,1755475860120,-400.0,0.00013698,2]
[380016446,1755475860130,-400.0,0.00013698,2]
[380016447,1755475860141,-190.952011,0.00013698,2]
[380016448,1755475860152,-400.0,0.00013698,2]
[380016449,1755475860163,-151.0,0.00013698,2]
[380016450,1755475860173,-400.0,0.00013698,2]
[380016451,1755475860183,-400.0,0.00013698,2]
[380016452,1755475860192,-400.0,0.00013698,2]
[380016453,1755475860202,-2666.92,0.00013698,2]
[380016454,1755475860212,-500.0,0.00013698,2]
[380016455,1755475860221,-500.0,0.00013698,2]
[380016456,1755475860232,-500.0,0.00013698,2]
[380016457,1755475860242,-500.0,0.00013698,2]
[380016458,1755475860252,-401.60801358,0.00013698,2]
[380016459,1755475860262,-10487.55,0.00013698,2]
[380016460,1755475860272,-586.12,0.00013698,2]
[380016461,1755475860282,-691.84,0.00013698,2]
[380016462,1755475860648,-13114.35,0.00013698,2]
[380016463,1755475860660,-400.0,0.00013698,2]
[380016464,1755475860670,-500.0,0.00013698,2]
[380016465,1755475860680,-500.0,0.00013698,2]
[380016466,1755475860690,-400.0,0.00013698,2]
[380016467,1755475860700,-500.0,0.00013698,2]
[380016468,1755475860710,-500.0,0.00013698,2]
[380016469,1755475860720,-500.0,0.00013698,2]
[380016470,1755475860730,-1485.85,0.00013698,2]
[380016471,1755475860740,-500.0,0.00013698,2]
[380016472,1755475860749,-500.0,0.00013698,2]
[380016473,1755475860759,-2609.33,0.00013698,2]
[380016474,1755475860769,-500.0,0.00013698,2]
[380016475,1755475860779,-500.0,0.00013698,2]
[380016476,1755475860790,-1483.89,0.00013698,2]
[380016477,1755475860799,-500.0,0.00013698,2]
[380016478,1755475860810,-1911.27,0.00013698,2]
[380016479,1755475860820,-500.0,0.00013698,2]
[380016480,1755475860832,-772.46,0.00013698,2]
[380016481,1755475860842,-1075.54,0.00013698,2]
[380016482,1755475860852,-400.0,0.00013698,2]
[380016483,1755475860862,-500.0,0.00013698,2]
[380016484,1755475860872,-654.43,0.00013698,2]
[380016485,1755475860882,-665.25,0.00013698,2]
[380016486,1755475860892,-500.0,0.00013698,2]
[380016487,1755475860902,-400.0,0.00013698,2]
[380016488,1755475860912,-151.0,0.00013698,2]
[380016489,1755475860921,-272.0146521,0.00013698,2]
[380016490,1755475860932,-225.41989,0.00013698,2]
[380016491,1755475860942,-400.0,0.00013698,2]
[380016492,1755475860952,-400.0,0.00013698,2]
[380016493,1755475860962,-5324.16,0.00013698,2]
[380016494,1755475860972,-400.0,0.00013698,2]
[380016495,1755475860982,-474.566646,0.00013698,2]
[380016496,1755475860993,-541.45,0.00013698,2]
[380016497,1755475861003,-400.0,0.00013698,2]
[380016498,1755475861013,-400.0,0.00013698,2]
[380016499,1755475861022,-225.41989,0.00013698,2]
[380016500,1755475861032,-395.530632,0.00013698,2]
[380016501,1755475861042,-400.0,0.00013698,2]
[380016502,1755475861053,-187.28927,0.00013698,2]
[380016503,1755475861062,-2474.23,0.00013698,2]
[380016504,1755475861072,-400.0,0.00013698,2]
[380016505,1755475861083,-25782.44,0.00013698,2]
[380016506,1755475861093,-474.566646,0.00013698,2]
[380016507,1755475861103,-395.530632,0.00013698,2]
[380016508,1755475861113,-400.0,0.00013698,2]
[380016509,1755475861123,-3185.21,0.00013698,2]
[380016510,1755475861133,-400.0,0.00013698,2]
[380016511,1755475861143,-1059.23,0.00013698,2]
[380016512,1755475861153,-400.0,0.00013698,2]
[380016513,1755475861163,-3754.14,0.00013698,2]
[380016514,1755475861173,-187.28927,0.00013698,2]
[380016515,1755475861183,-530.65,0.00013698,2]
[380016516,1755475861193,-650.58,0.00013698,2]
[380016517,1755475861203,-400.0,0.00013698,2]
[380016518,1755475861213,-1390.06,0.00013698,2]
[380016519,1755475861223,-400.0,0.00013698,2]
[380016520,1755475861233,-400.0,0.00013698,2]
[380016521,1755475861243,-500.0,0.00013698,2]
[380016522,1755475861252,-500.0,0.00013698,2]
[380016523,1755475861262,-400.0,0.00013698,2]
[380016524,1755475861272,-500.0,0.00013698,2]
[380016525,1755475861282,-500.0,0.00013698,2]
[380016526,1755475861292,-2705.03,0.00013698,2]
[380016527,1755475861302,-500.0,0.00013698,2]
[380016528,1755475861311,-400.0,0.00013698,2]
[380016529,1755475861321,-500.0,0.00013698,2]
[380016530,1755475861332,-500.0,0.00013698,2]
[380016531,1755475861342,-1380.53,0.00013698,2]
[380016532,1755475861352,-500.0,0.00013698,2]
[380016533,1755475861362,-500.0,0.00013698,2]
[380016534,1755475861371,-400.0,0.00013698,2]
[380016535,1755475861381,-500.0,0.00013698,2]
[380016536,1755475861391,-8696.76,0.00013698,2]
[380016537,1755475861400,-500.0,0.00013698,2]
[380016538,1755475861410,-500.0,0.00013698,2]
[380016539,1755475861431,-607.44,0.00013698,2]
[380016540,1755475861440,-557.27,0.00013698,2]
[380016541,1755475861450,-400.0,0.00013698,2]
[380016542,1755475861461,-589.721104,0.00013698,2]
[380016543,1755475861471,-2526.43,0.00013698,2]
[380016544,1755475861480,-4654.99,0.00013698,2]
[380016545,1755475861490,-400.0,0.00013698,2]
[380016546,1755475861499,-612.56,0.00013698,2]
[380016547,1755475861509,-591.82,0.00013698,2]
[380016548,1755475861518,-612.56,0.00013698,2]
[380016549,1755475861528,-612.56,0.00013698,2]
[380016550,1755475861542,-612.56,0.00013698,2]
[380016551,1755475861551,-612.56,0.00013698,2]
[380016552,1755475861561,-2760.36,0.00013698,2]
[380016553,1755475861571,-612.56,0.00013698,2]
[380016554,1755475861582,-315.428863,0.00013698,2]
[380016555,1755475861591,-5014.25,0.00013698,2]
[380016556,1755475861601,-612.56,0.00013698,2]
[380016557,1755475861612,-612.56,0.00013698,2]
[380016558,1755475861622,-612.56,0.00013698,2]
[380016559,1755475861632,-589.721104,0.00013698,2]
[380016560,1755475861641,-612.56,0.00013698,2]
[380016561,1755475861651,-612.56,0.00013698,2]
[380016562,1755475861661,-9074.99,0.00013698,2]
[380016563,1755475861670,-612.56,0.00013698,2]
[380016564,1755475861679,-612.56,0.00013698,2]
[380016565,1755475861689,-6528.1,0.00013698,2]
[380016566,1755475861699,-612.56,0.00013698,2]
[380016567,1755475861708,-612.56,0.00013698,2]
[380016568,1755475861719,-612.56,0.00013698,2]
[380016569,1755475861728,-151.0,0.00013698,2]
[380016570,1755475861737,-612.56,0.00013698,2]
[380016571,1755475861747,-4831.33,0.00013698,2]
[380016572,1755475861757,-315.428863,0.00013698,2]
[380016573,1755475861766,-612.56,0.00013698,2]
[380016574,1755475861775,-612.56,0.00013698,2]
[380016575,1755475861785,-612.56,0.00013698,2]
[380016576,1755475861794,-612.56,0.00013698,2]
[380016577,1755475861803,-612.56,0.00013698,2]
[380016578,1755475861813,-798.08,0.00013698,2]
[380016579,1755475861822,-612.56,0.00013698,2]
[380016580,1755475861832,-612.68260559,0.00013698,2]
[380016581,1755475861842,-400.0,0.00013698,2]
[380016582,1755475861852,-294.3101,0.00013698,2]
[380016583,1755475861862,-608.32,0.00013698,2]
[380016584,1755475861871,-400.0,0.00013698,2]
[380016585,1755475861882,-603.48,0.00013698,2]
[380016586,1755475861891,-1213.97,0.00013698,2]
[380016587,1755475861901,-435.08,0.00013698,2]
[380016588,1755475861911,-705.92,0.00013698,2]
[380016589,1755475861923,-907.43,0.00013698,2]
[380016590,1755475861933,-2111.34,0.00013698,2]
[380016591,1755475861942,-3355.82,0.00013698,2]
[380016592,1755475861952,-1817.8,0.00013698,2]
[380016593,1755475861963,-4842.54,0.00013698,2]
[380016594,1755475861973,-459.52639571,0.00013698,2]
[380016595,1755475861982,-400.0,0.00013698,2]
[380016596,1755475861992,-724.36716,0.00013698,2]
[380016597,1755475862002,-446.21,0.00013698,2]
[380016598,1755475862012,-18679.44,0.00013698,2]
[380016599,1755475862021,-400.0,0.00013698,2]
[380016600,1755475862032,-2763.19,0.00013698,2]
[380016601,1755475862042,-4470.66,0.00013698,2]
[380016602,1755475862052,-724.36716,0.00013698,2]
[380016603,1755475862061,-3983.88,0.00013698,2]
[380016604,1755475862071,-244.031451,0.00013698,2]
[380016605,1755475862082,-4411.16,0.00013698,2]
[380016606,1755475862092,-470.09,0.00013698,2]
[380016607,1755475862101,-294.3101,0.00013698,2]
[380016608,1755475862111,-244.031451,0.00013698,2]
[380016609,1755475862121,-5014.35,0.00013698,2]
[380016610,1755475862130,-400.0,0.00013698,2]
[380016611,1755475862141,-500.0,0.00013698,2]
[380016612,1755475862152,-151.0,0.00013698,2]
[380016613,1755475862162,-986.36,0.00013698,2]
[380016614,1755475862172,-1333.42,0.00013698,2]
[380016615,1755475862182,-500.0,0.00013698,2]
[380016616,1755475862192,-400.0,0.00013698,2]
[380016617,1755475862201,-500.0,0.00013698,2]
[380016618,1755475862211,-2858.12,0.00013698,2]
[380016619,1755475862220,-5842.59,0.00013698,2]
[380016620,1755475862230,-600.56,0.00013698,2]
[380016621,1755475862240,-500.0,0.00013698,2]
[380016622,1755475862250,-4369.3,0.00013698,2]
[380016623,1755475862259,-500.0,0.00013698,2]
[380016624,1755475862269,-6412.29,0.00013698,2]
[380016625,1755475862279,-400.0,0.00013698,2]
[380016626,1755475862288,-500.0,0.00013698,2]
[380016627,1755475862298,-500.0,0.00013698,2]
[380016628,1755475862308,-400.24363567,0.00013698,2]
[380016629,1755475862320,-500.0,0.00013698,2]
[380016630,1755475862331,-500.0,0.00013698,2]
[380016631,1755475862340,-500.0,0.00013698,2]
[380016632,1755475862351,-500.0,0.00013698,2]
[380016633,1755475862360,-1040.944647,0.00013698,2]
[380016634,1755475862373,-400.0,0.00013698,2]
[380016635,1755475862383,-500.0,0.00013698,2]
[380016636,1755475862393,-500.0,0.00013698,2]
[380016637,1755475862402,-151.0,0.00013698,2]
[380016638,1755475862412,-400.0,0.00013698,2]
[380016639,1755475862423,-500.0,0.00013698,2]
[380016640,1755475862435,-151.0,0.00013698,2]
[380016641,1755475862446,-500.0,0.00013698,2]
[380016642,1755475862458,-500.0,0.00013698,2]
[380016643,1755475862468,-500.0,0.00013698,2]
[380016644,1755475862478,-3961.78,0.00013698,2]
[380016645,1755475862488,-500.0,0.00013698,2]
[380016646,1755475862497,-500.0,0.00013698,2]
[380016647,1755475862507,-566.2,0.00013698,2]
[380016648,1755475862516,-637.0,0.00013698,2]
[380016649,1755475862526,-500.0,0.00013698,2]
[380016650,1755475862540,-500.0,0.00013698,2]
[380016651,1755475862549,-500.0,0.00013698,2]
[380016652,1755475862559,-1040.944647,0.00013698,2]
[380016653,1755475862568,-1306.11,0.00013698,2]
[380016654,1755475862579,-400.0,0.00013698,2]
[380016655,1755475862589,-4638.31,0.00013698,2]
[380016656,1755475862598,-400.0,0.00013698,2]
[380016657,1755475862610,-400.0,0.00013698,2]
[380016658,1755475862620,-3654.99,0.00013698,2]
[380016659,1755475862630,-260.069587,0.00013698,2]
[380016660,1755475862640,-400.0,0.00013698,2]
[380016661,1755475862650,-400.0,0.00013698,2]
[380016662,1755475862659,-660.3,0.00013698,2]
[380016663,1755475862669,-208.94878547,0.00013698,2]
[380016664,1755475862679,-400.0,0.00013698,2]
[380016665,1755475862689,-400.0,0.00013698,2]
[380016666,1755475862699,-2536.19,0.00013698,2]
[380016667,1755475862709,-400.0,0.00013698,2]
[380016668,1755475862720,-1011.41,0.00013698,2]
[380016669,1755475862730,-562.67,0.00013698,2]
[380016670,1755475862740,-260.069587,0.00013698,2]
[380016671,1755475862752,-4141.64,0.00013698,2]
[380016672,1755475862762,-641.13,0.00013698,2]
[380016673,1755475862771,-2238.09,0.00013698,2]
[380016674,1755475862781,-549.07,0.00013698,2]
[380016675,1755475862791,-400.0,0.00013698,2]
[380016676,1755475862800,-400.0,0.00013698,2]
[380016677,1755475862810,-2867.59,0.00013698,2]
[380016678,1755475862822,-4219.2,0.00013698,2]
[380016679,1755475862831,-2359.49,0.00013698,2]
[380016680,1755475862841,-2104.61,0.00013698,2]
[380016681,1755475862851,-907.4,0.00013698,2]
[380016682,1755475862861,-151.0,0.00013698,2]
[380016683,1755475862872,-669.01,0.00013698,2]
[380016684,1755475862882,-151.0,0.00013698,2]
[380016685,1755475862893,-151.0,0.00013698,2]
[380016686,1755475862904,-2302.376646,0.00013698,2]
[380016687,1755475862914,-415.74,0.00013698,2]
[380016688,1755475862924,-400.0,0.00013698,2]
[380016689,1755475862937,-3934.9,0.00013698,2]
[380016690,1755475862948,-1168.47,0.00013698,2]
[380016691,1755475862958,-734.53,0.00013698,2]
[380016692,1755475862968,-400.0,0.00013698,2]
[380016693,1755475862978,-400.0,0.00013698,2]
[380016694,1755475862988,-151.0,0.00013698,2]
[380016695,1755475863004,-400.0,0.00013698,2]
[380016696,1755475863013,-400.0,0.00013698,2]
[380016697,1755475863023,-177.302632,0.00013698,2]
[380016698,1755475863033,-400.0,0.00013698,2]
[380016699,1755475863043,-400.0,0.00013698,2]
[380016700,1755475863052,-905.18,0.00013698,2]
[380016701,1755475863062,-400.0,0.00013698,2]
[380016702,1755475863072,-151.0,0.00013698,2]
[380016703,1755475863183,-1003.23,0.00013698,2]
[380016704,1755475863194,-1020.55,0.00013698,2]
[380016705,1755475863203,-866.28,0.00013698,2]
[380016706,1755475863213,-177.302632,0.00013698,2]
[380016707,1755475863223,-3406.01,0.00013698,2]
[380016708,1755475863232,-190.057222,0.00013698,2]
[380016709,1755475863242,-400.0,0.00013698,2]
[380016710,1755475863251,-151.0,0.00013698,2]
[380016711,1755475863261,-6697.01,0.00013698,2]
[380016712,1755475863270,-473.32,0.00013698,2]
[380016713,1755475863280,-151.0,0.00013698,2]
[380016714,1755475863290,-3132.75,0.00013698,2]
[380016715,1755475863299,-156.787455,0.00013698,2]
[380016716,1755475863309,-190.057222,0.00013698,2]
[380016717,1755475863319,-400.0,0.00013698,2]
[380016718,1755475863329,-1168.31,0.00013698,2]
[380016719,1755475863339,-2222.7,0.00013698,2]
[380016720,1755475863349,-1665.74,0.00013698,2]
[380016721,1755475863359,-400.0,0.00013698,2]
[380016722,1755475863368,-400.0,0.00013698,2]
[380016723,1755475863378,-536.83,0.00013698,2]
[380016724,1755475863388,-551.68,0.00013698,2]
[380016725,1755475863397,-5108.72,0.00013698,2]
[380016726,1755475863407,-4838.94,0.00013698,2]
[380016727,1755475863417,-151.0,0.00013698,2]
[380016728,1755475863427,-4230.57,0.00013698,2]
[380016729,1755475863438,-903.75,0.00013698,2]
[380016730,1755475863448,-400.0,0.00013698,2]
[380016731,1755475863458,-151.0,0.00013698,2]
[380016732,1755475863468,-151.0,0.00013698,2]
[380016733,1755475863478,-1842.14,0.00013698,2]
[380016734,1755475863488,-515.32471607,0.00013698,2]
[380016735,1755475863499,-400.0,0.00013698,2]
[380016736,1755475863509,-400.0,0.00013698,2]
[380016737,1755475863519,-504.03,0.00013698,2]
[380016738,1755475863530,-2544.177102,0.00013698,2]
[380016739,1755475863543,-4801.94,0.00013698,2]
[380016740,1755475863553,-400.0,0.00013698,2]
[380016741,1755475863563,-1899.432568,0.00013698,2]
[380016742,1755475863572,-152.916351,0.00013698,2]
[380016743,1755475863583,-574.87,0.00013698,2]
[380016744,1755475863592,-574.87,0.00013698,2]
[380016745,1755475863602,-574.87,0.00013698,2]
[380016746,1755475863612,-151.0,0.00013698,2]
[380016747,1755475863623,-574.87,0.00013698,2]
[380016748,1755475863632,-574.87,0.00013698,2]
[380016749,1755475863642,-574.87,0.00013698,2]
[380016750,1755475863654,-574.87,0.00013698,2]
[380016751,1755475863670,-574.87,0.00013698,2]
[380016752,1755475863681,-2605.004854,0.00013698,2]
[380016753,1755475863694,-574.87,0.00013698,2]
[380016754,1755475863706,-574.87,0.00013698,2]
[380016755,1755475863717,-151.0,0.00013698,2]
[380016756,1755475863729,-574.87,0.00013698,2]
[380016757,1755475863741,-2544.177102,0.00013698,2]
[380016758,1755475863754,-574.87,0.00013698,2]
[380016759,1755475863765,-574.87,0.00013698,2]
[380016760,1755475863775,-574.87,0.00013698,2]
[380016761,1755475863786,-574.87,0.00013698,2]
[380016762,1755475863797,-400.0,0.00013698,2]
[380016763,1755475863808,-574.87,0.00013698,2]
[380016764,1755475863818,-1257.33,0.00013698,2]
[380016765,1755475863828,-5379.28,0.00013698,2]
[380016766,1755475863839,-574.87,0.00013698,2]
[380016767,1755475863849,-574.87,0.00013698,2]
[380016768,1755475863859,-1697.52,0.00013698,2]
[380016769,1755475863870,-574.87,0.00013698,2]
[380016770,1755475863879,-4862.3,0.00013698,2]
[380016771,1755475863889,-400.0,0.00013698,2]
[380016772,1755475863898,-574.87,0.00013698,2]
[380016773,1755475863908,-301.999999,0.00013698,2]
[380016774,1755475863918,-400.0,0.00013698,2]
[380016775,1755475863928,-574.87,0.00013698,2]
[380016776,1755475863938,-574.87,0.00013698,2]
[380016777,1755475863947,-400.0,0.00013698,2]
[380016778,1755475863956,-574.87,0.00013698,2]
[380016779,1755475863966,-575.04,0.00013698,2]
[380016780,1755475863976,-4038.51,0.00013698,2]
[380016781,1755475863986,-5135.52,0.00013698,2]
[380016782,1755475863995,-607.54,0.00013698,2]
[380016783,1755475864005,-400.0,0.00013698,2]
[380016784,1755475864015,-2746.27,0.00013698,2]
[380016785,1755475864025,-3567.5,0.00013698,2]
[380016786,1755475864035,-2190.9,0.00013698,2]
[380016787,1755475864045,-5393.64,0.00013698,2]
[380016788,1755475864055,-151.0,0.00013698,2]
[380016789,1755475864064,-770.42,0.00013698,2]
[380016790,1755475864074,-400.0,0.00013698,2]
[380016791,1755475864084,-9509.91,0.00013698,2]
[380016792,1755475864094,-589.142453,0.00013698,2]
[380016793,1755475864104,-151.0,0.00013698,2]
[380016794,1755475864114,-4001.6,0.00013698,2]
[380016795,1755475864124,-423.334853,0.00013698,2]
[380016796,1755475864133,-3889.61,0.00013698,2]
[380016797,1755475864143,-400.0,0.00013698,2]
[380016798,1755475864152,-688.14,0.00013698,2]
[380016799,1755475864162,-589.142453,0.00013698,2]
[380016800,1755475864171,-2864.7,0.00013698,2]
[380016801,1755475864181,-2461.35,0.00013698,2]
[380016802,1755475864191,-400.0,0.00013698,2]
[380016803,1755475864201,-423.334853,0.00013698,2]
[380016804,1755475864210,-411.3,0.00013698,2]
[380016805,1755475864220,-2699.98,0.00013698,2]
[380016806,1755475864229,-400.0,0.00013698,2]
[380016807,1755475864239,-400.0,0.00013698,2]
[380016808,1755475864248,-1633.18,0.00013698,2]
[380016809,1755475864258,-403.29,0.00013698,2]
[380016810,1755475864268,-582.04,0.00013698,2]
[380016811,1755475864277,-400.0,0.00013698,2]
[380016812,1755475864287,-400.0,0.00013698,2]
[380016813,1755475864297,-4431.33,0.00013698,2]
[380016814,1755475864306,-400.0,0.00013698,2]
[380016815,1755475864316,-4356.1,0.00013698,2]
[380016816,1755475864326,-3550.06,0.00013698,2]
[380016817,1755475864335,-6288.11,0.00013698,2]
[380016818,1755475864344,-210.665336,0.00013698,2]
[380016819,1755475864354,-3134.07,0.00013698,2]
[380016820,1755475864363,-500.0,0.00013698,2]
[380016821,1755475864373,-788.08,0.00013698,2]
[380016822,1755475864383,-400.0,0.00013698,2]
[380016823,1755475864392,-500.0,0.00013698,2]
[380016824,1755475864402,-2608.23,0.00013698,2]
[380016825,1755475864411,-400.0,0.00013698,2]
[380016826,1755475864420,-500.0,0.00013698,2]
[380016827,1755475864430,-151.0,0.00013698,2]
[380016828,1755475864439,-500.0,0.00013698,2]
[380016829,1755475864449,-1081.56,0.00013698,2]
[380016830,1755475864458,-400.0,0.00013698,2]
[380016831,1755475864468,-502.01185049,0.00013698,2]
[380016832,1755475864477,-400.0,0.00013698,2]
[380016833,1755475864487,-400.0,0.00013698,2]
[380016834,1755475864497,-2057.0,0.00013698,2]
[380016835,1755475864507,-7491.64,0.00013698,2]
[380016836,1755475864516,-210.665336,0.00013698,2]
[380016837,1755475864526,-235.638046,0.00013698,2]
[380016838,1755475864540,-1739.73,0.00013698,2]
[380016839,1755475864549,-400.0,0.00013698,2]
[380016840,1755475864559,-2134.0,0.00013698,2]
[380016841,1755475864568,-400.0,0.00013698,2]
[380016842,1755475864579,-151.0,0.00013698,2]
[380016843,1755475864590,-235.638046,0.00013698,2]
[380016844,1755475864600,-10245.69,0.00013698,2]
[380016845,1755475864611,-400.0,0.00013698,2]
[380016846,1755475864621,-532.31,0.00013698,2]
[380016847,1755475864631,-400.0,0.00013698,2]
[380016848,1755475864641,-400.0,0.00013698,2]
[380016849,1755475864650,-4187.66,0.00013698,2]
[380016850,1755475864659,-400.0,0.00013698,2]
[380016851,1755475864670,-2387.33,0.00013698,2]
[380016852,1755475864679,-400.0,0.00013698,2]
[380016853,1755475864689,-400.0,0.00013698,2]
[380016854,1755475864699,-864.4,0.00013698,2]
[380016855,1755475864709,-3069.94,0.00013698,2]
[380016856,1755475864720,-3627.33,0.00013698,2]
[380016857,1755475864730,-2184.39,0.00013698,2]
[380016858,1755475864739,-400.0,0.00013698,2]
[380016859,1755475864749,-400.0,0.00013698,2]
[380016860,1755475864758,-151.0,0.00013698,2]
[380016861,1755475864767,-400.0,0.00013698,2]
[380016862,1755475864777,-400.0,0.00013698,2]
[380016863,1755475864786,-587.09,0.00013698,2]
[380016864,1755475864796,-400.0,0.00013698,2]
[380016865,1755475864806,-8882.85,0.00013698,2]
[380016866,1755475864815,-7163.48,0.00013698,2]
[380016867,1755475864828,-2287.398354,0.00013698,2]
[380016868,1755475864838,-2634.09,0.00013698,2]
[380016869,1755475864847,-400.0,0.00013698,2]
[380016870,1755475864856,-4181.06,0.00013698,2]
[380016871,1755475864865,-1363.29,0.00013698,2]
[380016872,1755475864874,-2287.398354,0.00013698,2]
[380016873,1755475864884,-1510.2,0.00013698,2]
[380016874,1755475864894,-2578.79,0.00013698,2]
[380016875,1755475864903,-400.0,0.00013698,2]
[380016876,1755475864913,-7088.04,0.00013698,2]
[380016877,1755475864923,-509.75,0.00013698,2]
[380016878,1755475864933,-662.93,0.00013698,2]
[380016879,1755475864943,-400.0,0.00013698,2]
[380016880,1755475864953,-1407.46,0.00013698,2]
[380016881,1755475864962,-1348.66,0.00013698,2]
[380016882,1755475864972,-923.16,0.00013698,2]
[380016883,1755475864981,-6153.69,0.00013698,2]
[380016884,1755475864991,-748.0,0.00013698,2]
[380016885,1755475865000,-400.0,0.00013698,2]
[380016886,1755475865010,-400.0,0.00013698,2]
[380016887,1755475865020,-776.94,0.00013698,2]
[380016888,1755475865031,-4329.43,0.00013698,2]
[380016889,1755475865046,-400.0,0.00013698,2]
[380016890,1755475865055,-830.233767,0.00013698,2]
[380016891,1755475865065,-400.0,0.00013698,2]
[380016892,1755475865074,-2071.81,0.00013698,2]
[380016893,1755475865084,-400.0,0.00013698,2]
[380016894,1755475865094,-2442.27,0.00013698,2]
[380016895,1755475865104,-3597.72,0.00013698,2]
[380016896,1755475865114,-161.00243,0.00013698,2]
[380016897,1755475865123,-11346.16,0.00013698,2]
[380016898,1755475865133,-151.0,0.00013698,2]
[380016899,1755475865143,-400.0,0.00013698,2]
[380016900,1755475865152,-776.05,0.00013698,2]